Workbook

Sheet Cálculador cuota
I3: SIMULADOR DE CÁLCULO DE CUOTAS LIBRANZA
I4: VENTA
F8: No. Convenio | I8: REAL | X8: REAL | Y8: 30
F9: =IFERROR(VLOOKUP(I8,#REF!,2,0),"FALTA DIGITAR No. DE CONVENIO") -> FALTA DIGITAR No. DE CONVENIO | X9: GRUPO COLPATRIA | Y9: 30
F10: Monto Solicitado/Aprobado | I10: 30000000 | X10: OFICIAL | Y10: 60
F11: % Tasa E.A. | I11: =EFFECT(I12*12,12) -> 0.1580060868 | X11: EDUCACIÓN PÚBLICA | Y11: 90
F12: % Tasa N.M.V. | I12: 0.0123 | X12: FUERZAS MILITARES | Y12: 90
F13: Plazo | I13: 84 | X13: POLICIA | Y13: 90
X14: PENSIONADOS | Y14: 90
X15: POLICIA | Y15: 90
F16: Cuota | G16: -335544.32 | I16: 585907.2271
F17: Cuota + Seguro | I17: =IFERROR(IF(AND(VLOOKUP(Plazo,$B$57:$K$350,10,0)>-1,(VLOOKUP(Plazo,$B$57:$K$350,10,0)<1)),ROUND((I10*0.0016)+I16,0),0),0) -> 633907
F18: Total crédito | I18: =IFERROR(I17*Plazo,0) -> 53248188
F19: Desplazamiento convenio | I19: =IFERROR(VLOOKUP(I8,$X$8:$Y$15,2,0),0) -> 30 | K19: =UPPER(ALETRAS(I18)) -> CINCUENTA Y TRES MILLONES DOSCIENTOS CUARENTA Y OCHO MIL CIENTO OCHENTA Y OCHO PESOS
F20: Día específico | I20: =IFERROR(VLOOKUP(I8,#REF!,3,0),"-") -> -
F21: Fecha de Desembolso | I21: =TODAY() -> 2019-10-22
E22: Días | F22: =IF(I19=90,122,IF(I19=60,92,IF(I19=30,62))) -> 62
F25: VTU % E.A. | I25: =IFERROR(EFFECT(N54,12)," ") -> 0.195318792
F26: VTU Resultante en pesos | I26: =SUM(M57:M374) -> 52614281
M54: =IRR(M56:M1048576) -> 0.01497881814 | N54: =M54*12 -> 0.1797458177
A56: No. Cuota | B56: No. cuota | C56: F.Inicio | D56: F.Fin | E56: Días | F56: Valor Cuota | G56: Interés x | H56: Capital x | I56: Interés | J56: Capital | K56: Saldo | M56: =-Monto -> -30000000
A57: 1 | B57: 1 | C57: =I21 -> 2019-10-22 | D57: =C57+F22 -> 2019-12-23 | E57: =IF(B57>Plazo,"",_xlfn.DAYS(D57,C57)) -> 62 | F57: =IF(B57>Plazo,"",$I$16) -> 585907.2271 | G57: =IF(B57>Plazo,"",(I10*$I$12)/30*E57) -> 762600 | H57: =IF(B57>Plazo,"",F57-G57) -> -176692.7729 | I57: =IF(B57>Plazo,"",IF(G57>F57,F57,G57)) -> 585907.2271 | J57: =IF(B57>Plazo,"",IF(H57<0,0,(F57-G57))) -> 0 | K57: =IF(B57>Plazo,0,I10-J57) -> 30000000 | M57: =IF(K57>1,CuotaSeg,0) -> 633907
A58: 2 | B58: 2 | C58: =IF(B58>Plazo,"",D57) -> 2019-12-23 | D58: =IF(B58>Plazo,"",EDATE(D57,1)) -> 2020-01-23 | E58: 31 | F58: 585907.2271 | G58: =IF(B58>Plazo,"",(K57*$I$12)/30*E58) -> 381300 | H58: =IF(B58>Plazo,"",F58-I58) -> 27914.45424 | I58: =IF(B58>Plazo,"",IF(H57<0,G58-H57,G58)) -> 557992.7729 | J58: =IF(B58>Plazo,"",IF(H58<0,0,(F58-I58))) -> 27914.45424 | K58: =IF(B58>Plazo,-1,K57-J58) -> 29972085.55 | M58: 633907
A59: 3 | B59: 3 | C59: 2020-01-23 | D59: 2020-02-23 | E59: 31 | F59: 585907.2271 | G59: 380945.2073 | H59: 204962.0198 | I59: 380945.2073 | J59: 204962.0198 | K59: 29767123.53 | M59: 633907
A60: 4 | B60: 4 | C60: 2020-02-23 | D60: 2020-03-23 | E60: 29 | F60: 585907.2271 | G60: 353931.0987 | H60: 231976.1284 | I60: 353931.0987 | J60: 231976.1284 | K60: 29535147.4 | M60: 633907
A61: 5 | B61: 5 | C61: 2020-03-23 | D61: 2020-04-23 | E61: 31 | F61: 585907.2271 | G61: 375391.7234 | H61: 210515.5037 | I61: 375391.7234 | J61: 210515.5037 | K61: 29324631.89 | M61: 633907
A62: 6 | B62: 6 | C62: 2020-04-23 | D62: 2020-05-23 | E62: 30 | F62: 585907.2271 | G62: 360692.9723 | H62: 225214.2548 | I62: 360692.9723 | J62: 225214.2548 | K62: 29099417.64 | M62: 633907
A63: 7 | B63: 7 | C63: 2020-05-23 | D63: 2020-06-23 | E63: 31 | F63: 585907.2271 | G63: 369853.5982 | H63: 216053.6289 | I63: 369853.5982 | J63: 216053.6289 | K63: 28883364.01 | M63: 633907
A64: 8 | B64: 8 | C64: 2020-06-23 | D64: 2020-07-23 | E64: 30 | F64: 585907.2271 | G64: 355265.3773 | H64: 230641.8498 | I64: 355265.3773 | J64: 230641.8498 | K64: 28652722.16 | M64: 633907
A65: 9 | B65: 9 | C65: 2020-07-23 | D65: 2020-08-23 | E65: 31 | F65: 585907.2271 | G65: 364176.0987 | H65: 221731.1285 | I65: 364176.0987 | J65: 221731.1285 | K65: 28430991.03 | M65: 633907
A66: 10 | B66: 10 | C66: 2020-08-23 | D66: 2020-09-23 | E66: 31 | F66: 585907.2271 | G66: 361357.896 | H66: 224549.3311 | I66: 361357.896 | J66: 224549.3311 | K66: 28206441.7 | M66: 633907
A67: 11 | B67: 11 | C67: 2020-09-23 | D67: 2020-10-23 | E67: 30 | F67: 585907.2271 | G67: 346939.2329 | H67: 238967.9942 | I67: 346939.2329 | J67: 238967.9942 | K67: 27967473.71 | M67: 633907
A68: 12 | B68: 12 | C68: 2020-10-23 | D68: 2020-11-23 | E68: 31 | F68: 585907.2271 | G68: 355466.5908 | H68: 230440.6363 | I68: 355466.5908 | J68: 230440.6363 | K68: 27737033.07 | M68: 633907
A69: 13 | B69: 13 | C69: 2020-11-23 | D69: 2020-12-23 | E69: 30 | F69: 585907.2271 | G69: 341165.5068 | H69: 244741.7204 | I69: 341165.5068 | J69: 244741.7204 | K69: 27492291.35 | M69: 633907
A70: 14 | B70: 14 | C70: 2020-12-23 | D70: 2021-01-23 | E70: 31 | F70: 585907.2271 | G70: 349427.0231 | H70: 236480.2041 | I70: 349427.0231 | J70: 236480.2041 | K70: 27255811.15 | M70: 633907
A71: 15 | B71: 15 | C71: 2021-01-23 | D71: 2021-02-23 | E71: 31 | F71: 585907.2271 | G71: 346421.3597 | H71: 239485.8675 | I71: 346421.3597 | J71: 239485.8675 | K71: 27016325.28 | M71: 633907
A72: 16 | B72: 16 | C72: 2021-02-23 | D72: 2021-03-23 | E72: 28 | F72: 585907.2271 | G72: 310147.4142 | H72: 275759.8129 | I72: 310147.4142 | J72: 275759.8129 | K72: 26740565.47 | M72: 633907
A73: 17 | B73: 17 | C73: 2021-03-23 | D73: 2021-04-23 | E73: 31 | F73: 585907.2271 | G73: 339872.5871 | H73: 246034.6401 | I73: 339872.5871 | J73: 246034.6401 | K73: 26494530.83 | M73: 633907
A74: 18 | B74: 18 | C74: 2021-04-23 | D74: 2021-05-23 | E74: 30 | F74: 585907.2271 | G74: 325882.7292 | H74: 260024.498 | I74: 325882.7292 | J74: 260024.498 | K74: 26234506.33 | M74: 633907
A75: 19 | B75: 19 | C75: 2021-05-23 | D75: 2021-06-23 | E75: 31 | F75: 585907.2271 | G75: 333440.5754 | H75: 252466.6517 | I75: 333440.5754 | J75: 252466.6517 | K75: 25982039.68 | M75: 633907
A76: 20 | B76: 20 | C76: 2021-06-23 | D76: 2021-07-23 | E76: 30 | F76: 585907.2271 | G76: 319579.088 | H76: 266328.1391 | I76: 319579.088 | J76: 266328.1391 | K76: 25715711.54 | M76: 633907
A77: 21 | B77: 21 | C77: 2021-07-23 | D77: 2021-08-23 | E77: 31 | F77: 585907.2271 | G77: 326846.6936 | H77: 259060.5335 | I77: 326846.6936 | J77: 259060.5335 | K77: 25456651 | M77: 633907
A78: 22 | B78: 22 | C78: 2021-08-23 | D78: 2021-09-23 | E78: 31 | F78: 585907.2271 | G78: 323554.0342 | H78: 262353.1929 | I78: 323554.0342 | J78: 262353.1929 | K78: 25194297.81 | M78: 633907
A79: 23 | B79: 23 | C79: 2021-09-23 | D79: 2021-10-23 | E79: 30 | F79: 585907.2271 | G79: 309889.8631 | H79: 276017.3641 | I79: 309889.8631 | J79: 276017.3641 | K79: 24918280.45 | M79: 633907
A80: 24 | B80: 24 | C80: 2021-10-23 | D80: 2021-11-23 | E80: 31 | F80: 585907.2271 | G80: 316711.3445 | H80: 269195.8827 | I80: 316711.3445 | J80: 269195.8827 | K80: 24649084.56 | M80: 633907
A81: 25 | B81: 25 | C81: 2021-11-23 | D81: 2021-12-23 | E81: 30 | F81: 585907.2271 | G81: 303183.7401 | H81: 282723.487 | I81: 303183.7401 | J81: 282723.487 | K81: 24366361.08 | M81: 633907
A82: 26 | B82: 26 | C82: 2021-12-23 | D82: 2022-01-23 | E82: 31 | F82: 585907.2271 | G82: 309696.4493 | H82: 276210.7778 | I82: 309696.4493 | J82: 276210.7778 | K82: 24090150.3 | M82: 633907
A83: 27 | B83: 27 | C83: 2022-01-23 | D83: 2022-02-23 | E83: 31 | F83: 585907.2271 | G83: 306185.8103 | H83: 279721.4168 | I83: 306185.8103 | J83: 279721.4168 | K83: 23810428.88 | M83: 633907
A84: 28 | B84: 28 | C84: 2022-02-23 | D84: 2022-03-23 | E84: 28 | F84: 585907.2271 | G84: 273343.7236 | H84: 312563.5036 | I84: 273343.7236 | J84: 312563.5036 | K84: 23497865.38 | M84: 633907
A85: 29 | B85: 29 | C85: 2022-03-23 | D85: 2022-04-23 | E85: 31 | F85: 585907.2271 | G85: 298657.869 | H85: 287249.3582 | I85: 298657.869 | J85: 287249.3582 | K85: 23210616.02 | M85: 633907
A86: 30 | B86: 30 | C86: 2022-04-23 | D86: 2022-05-23 | E86: 30 | F86: 585907.2271 | G86: 285490.577 | H86: 300416.6501 | I86: 285490.577 | J86: 300416.6501 | K86: 22910199.37 | M86: 633907
A87: 31 | B87: 31 | C87: 2022-05-23 | D87: 2022-06-23 | E87: 31 | F87: 585907.2271 | G87: 291188.634 | H87: 294718.5931 | I87: 291188.634 | J87: 294718.5931 | K87: 22615480.78 | M87: 633907
A88: 32 | B88: 32 | C88: 2022-06-23 | D88: 2022-07-23 | E88: 30 | F88: 585907.2271 | G88: 278170.4136 | H88: 307736.8136 | I88: 278170.4136 | J88: 307736.8136 | K88: 22307743.96 | M88: 633907
A89: 33 | B89: 33 | C89: 2022-07-23 | D89: 2022-08-23 | E89: =IF(B89>Plazo,"",_xlfn.DAYS(D89,C89)) -> 31 | F89: =IF(B89>Plazo,"",$I$16) -> 585907.2271 | G89: 283531.4258 | H89: 302375.8013 | I89: 283531.4258 | J89: 302375.8013 | K89: 22005368.16 | M89: 633907
A90: 34 | B90: 34 | C90: =IF(B90>Plazo,"",D89) -> 2022-08-23 | D90: =IF(B90>Plazo,"",EDATE(D89,1)) -> 2022-09-23 | E90: 31 | F90: 585907.2271 | G90: =IF(B90>Plazo,"",(K89*$I$12)/30*E90) -> 279688.2293 | H90: =IF(B90>Plazo,"",F90-I90) -> 306218.9978 | I90: =IF(B90>Plazo,"",IF(H89<0,G90-H89,G90)) -> 279688.2293 | J90: =IF(B90>Plazo,"",IF(H90<0,0,(F90-I90))) -> 306218.9978 | K90: =IF(B90>Plazo,-1,K89-J90) -> 21699149.16 | M90: 633907
A91: 35 | B91: 35 | C91: 2022-09-23 | D91: 2022-10-23 | E91: 30 | F91: 585907.2271 | G91: 266899.5347 | H91: 319007.6924 | I91: 266899.5347 | J91: 319007.6924 | K91: 21380141.47 | M91: 633907
A92: 36 | B92: 36 | C92: 2022-10-23 | D92: 2022-11-23 | E92: 31 | F92: 585907.2271 | G92: 271741.5981 | H92: 314165.629 | I92: 271741.5981 | J92: 314165.629 | K92: 21065975.84 | M92: 633907
A93: 37 | B93: 37 | C93: 2022-11-23 | D93: 2022-12-23 | E93: 30 | F93: 585907.2271 | G93: 259111.5029 | H93: 326795.7243 | I93: 259111.5029 | J93: 326795.7243 | K93: 20739180.12 | M93: 633907
A94: 38 | B94: 38 | C94: 2022-12-23 | D94: 2023-01-23 | E94: 31 | F94: 585907.2271 | G94: 263594.9793 | H94: 322312.2478 | I94: 263594.9793 | J94: 322312.2478 | K94: 20416867.87 | M94: 633907
A95: 39 | B95: 39 | C95: 2023-01-23 | D95: 2023-02-23 | E95: 31 | F95: 585907.2271 | G95: 259498.3906 | H95: 326408.8365 | I95: 259498.3906 | J95: 326408.8365 | K95: 20090459.03 | M95: 633907
A96: 40 | B96: 40 | C96: 2023-02-23 | D96: 2023-03-23 | E96: 28 | F96: 585907.2271 | G96: 230638.4697 | H96: 355268.7574 | I96: 230638.4697 | J96: 355268.7574 | K96: 19735190.28 | M96: 633907
A97: 41 | B97: 41 | C97: 2023-03-23 | D97: 2023-04-23 | E97: 31 | F97: 585907.2271 | G97: 250834.2684 | H97: 335072.9587 | I97: 250834.2684 | J97: 335072.9587 | K97: 19400117.32 | M97: 633907
A98: 42 | B98: 42 | C98: 2023-04-23 | D98: 2023-05-23 | E98: 30 | F98: 585907.2271 | G98: 238621.443 | H98: 347285.7841 | I98: 238621.443 | J98: 347285.7841 | K98: 19052831.53 | M98: 633907
A99: 43 | B99: 43 | C99: 2023-05-23 | D99: 2023-06-23 | E99: 31 | F99: 585907.2271 | G99: 242161.4888 | H99: 343745.7383 | I99: 242161.4888 | J99: 343745.7383 | K99: 18709085.8 | M99: 633907
A100: 44 | B100: 44 | C100: 2023-06-23 | D100: 2023-07-23 | E100: 30 | F100: 585907.2271 | G100: 230121.7553 | H100: 355785.4718 | I100: 230121.7553 | J100: 355785.4718 | K100: 18353300.32 | M100: 633907
A101: 45 | B101: 45 | C101: 2023-07-23 | D101: 2023-08-23 | E101: 31 | F101: 585907.2271 | G101: 233270.4471 | H101: 352636.78 | I101: 233270.4471 | J101: 352636.78 | K101: 18000663.54 | M101: 633907
A102: 46 | B102: 46 | C102: 2023-08-23 | D102: 2023-09-23 | E102: 31 | F102: 585907.2271 | G102: 228788.4336 | H102: 357118.7935 | I102: 228788.4336 | J102: 357118.7935 | K102: 17643544.75 | M102: 633907
A103: 47 | B103: 47 | C103: 2023-09-23 | D103: 2023-10-23 | E103: 30 | F103: 585907.2271 | G103: 217015.6004 | H103: 368891.6267 | I103: 217015.6004 | J103: 368891.6267 | K103: 17274653.12 | M103: 633907
A104: 48 | B104: 48 | C104: 2023-10-23 | D104: 2023-11-23 | E104: 31 | F104: 585907.2271 | G104: 219560.8412 | H104: 366346.3859 | I104: 219560.8412 | J104: 366346.3859 | K104: 16908306.74 | M104: 633907
A105: 49 | B105: 49 | C105: 2023-11-23 | D105: 2023-12-23 | E105: 30 | F105: 585907.2271 | G105: 207972.1729 | H105: 377935.0542 | I105: 207972.1729 | J105: 377935.0542 | K105: 16530371.68 | M105: 633907
A106: 50 | B106: 50 | C106: 2023-12-23 | D106: 2024-01-23 | E106: 31 | F106: 585907.2271 | G106: 210101.0241 | H106: 375806.203 | I106: 210101.0241 | J106: 375806.203 | K106: 16154565.48 | M106: 633907
A107: 51 | B107: 51 | C107: 2024-01-23 | D107: 2024-02-23 | E107: 31 | F107: 585907.2271 | G107: 205324.5273 | H107: 380582.6999 | I107: 205324.5273 | J107: 380582.6999 | K107: 15773982.78 | M107: 633907
A108: 52 | B108: 52 | C108: 2024-02-23 | D108: 2024-03-23 | E108: 29 | F108: 585907.2271 | G108: 187552.6553 | H108: 398354.5719 | I108: 187552.6553 | J108: 398354.5719 | K108: 15375628.21 | M108: 633907
A109: 53 | B109: 53 | C109: 2024-03-23 | D109: 2024-04-23 | E109: 31 | F109: 585907.2271 | G109: 195424.2345 | H109: 390482.9926 | I109: 195424.2345 | J109: 390482.9926 | K109: 14985145.22 | M109: 633907
A110: 54 | B110: 54 | C110: 2024-04-23 | D110: 2024-05-23 | E110: 30 | F110: 585907.2271 | G110: 184317.2862 | H110: 401589.941 | I110: 184317.2862 | J110: 401589.941 | K110: 14583555.28 | M110: 633907
A111: 55 | B111: 55 | C111: 2024-05-23 | D111: 2024-06-23 | E111: 31 | F111: 585907.2271 | G111: 185356.9875 | H111: 400550.2396 | I111: 185356.9875 | J111: 400550.2396 | K111: 14183005.04 | M111: 633907
A112: 56 | B112: 56 | C112: 2024-06-23 | D112: 2024-07-23 | E112: 30 | F112: 585907.2271 | G112: 174450.9619 | H112: 411456.2652 | I112: 174450.9619 | J112: 411456.2652 | K112: 13771548.77 | M112: 633907
A113: 57 | B113: 57 | C113: 2024-07-23 | D113: 2024-08-23 | E113: 31 | F113: 585907.2271 | G113: 175036.3849 | H113: 410870.8422 | I113: 175036.3849 | J113: 410870.8422 | K113: 13360677.93 | M113: 633907
A114: 58 | B114: 58 | C114: 2024-08-23 | D114: 2024-09-23 | E114: 31 | F114: 585907.2271 | G114: 169814.2165 | H114: 416093.0107 | I114: 169814.2165 | J114: 416093.0107 | K114: 12944584.92 | M114: 633907
A115: 59 | B115: 59 | C115: 2024-09-23 | D115: 2024-10-23 | E115: 30 | F115: 585907.2271 | G115: 159218.3945 | H115: 426688.8326 | I115: 159218.3945 | J115: 426688.8326 | K115: 12517896.08 | M115: 633907
A116: 60 | B116: 60 | C116: 2024-10-23 | D116: 2024-11-23 | E116: 31 | F116: 585907.2271 | G116: 159102.4592 | H116: 426804.7679 | I116: 159102.4592 | J116: 426804.7679 | K116: 12091091.32 | M116: 633907
A117: 61 | B117: 61 | C117: 2024-11-23 | D117: 2024-12-23 | E117: 30 | F117: 585907.2271 | G117: 148720.4232 | H117: 437186.8039 | I117: 148720.4232 | J117: 437186.8039 | K117: 11653904.51 | M117: 633907
A118: 62 | B118: 62 | C118: 2024-12-23 | D118: 2025-01-23 | E118: 31 | F118: 585907.2271 | G118: 148121.1264 | H118: 437786.1008 | I118: 148121.1264 | J118: 437786.1008 | K118: 11216118.41 | M118: 633907
A119: 63 | B119: 63 | C119: 2025-01-23 | D119: 2025-02-23 | E119: 31 | F119: 585907.2271 | G119: 142556.865 | H119: 443350.3621 | I119: 142556.865 | J119: 443350.3621 | K119: 10772768.05 | M119: 633907
A120: 64 | B120: 64 | C120: 2025-02-23 | D120: 2025-03-23 | E120: 28 | F120: 585907.2271 | G120: 123671.3772 | H120: 462235.8499 | I120: 123671.3772 | J120: 462235.8499 | K120: 10310532.2 | M120: 633907
A121: 65 | B121: 65 | C121: 2025-03-23 | D121: 2025-04-23 | E121: =IF(B121>Plazo,"",_xlfn.DAYS(D121,C121)) -> 31 | F121: =IF(B121>Plazo,"",$I$16) -> 585907.2271 | G121: 131046.8643 | H121: 454860.3629 | I121: 131046.8643 | J121: 454860.3629 | K121: 9855671.837 | M121: =IF(K121>1,CuotaSeg,0) -> 633907
A122: 66 | B122: 66 | C122: =IF(B122>Plazo,"",D121) -> 2025-04-23 | D122: =IF(B122>Plazo,"",EDATE(D121,1)) -> 2025-05-23 | E122: 30 | F122: 585907.2271 | G122: =IF(B122>Plazo,"",(K121*$I$12)/30*E122) -> 121224.7636 | H122: =IF(B122>Plazo,"",F122-I122) -> 464682.4635 | I122: =IF(B122>Plazo,"",IF(H121<0,G122-H121,G122)) -> 121224.7636 | J122: =IF(B122>Plazo,"",IF(H122<0,0,(F122-I122))) -> 464682.4635 | K122: =IF(B122>Plazo,-1,K121-J122) -> 9390989.374 | M122: 633907
A123: 67 | B123: 67 | C123: 2025-05-23 | D123: 2025-06-23 | E123: 31 | F123: 585907.2271 | G123: 119359.4749 | H123: 466547.7522 | I123: 119359.4749 | J123: 466547.7522 | K123: 8924441.622 | M123: 633907
A124: 68 | B124: 68 | C124: 2025-06-23 | D124: 2025-07-23 | E124: 30 | F124: 585907.2271 | G124: 109770.6319 | H124: 476136.5952 | I124: 109770.6319 | J124: 476136.5952 | K124: 8448305.027 | M124: 633907
A125: 69 | B125: 69 | C125: 2025-07-23 | D125: 2025-08-23 | E125: 31 | F125: 585907.2271 | G125: 107377.9569 | H125: 478529.2702 | I125: 107377.9569 | J125: 478529.2702 | K125: 7969775.756 | M125: 633907
A126: 70 | B126: 70 | C126: 2025-08-23 | D126: 2025-09-23 | E126: 31 | F126: 585907.2271 | G126: 101295.8499 | H126: 484611.3773 | I126: 101295.8499 | J126: 484611.3773 | K126: 7485164.379 | M126: 633907
A127: 71 | B127: 71 | C127: 2025-09-23 | D127: 2025-10-23 | E127: 30 | F127: 585907.2271 | G127: 92067.52186 | H127: 493839.7053 | I127: 92067.52186 | J127: 493839.7053 | K127: 6991324.674 | M127: 633907
A128: 72 | B128: 72 | C128: 2025-10-23 | D128: 2025-11-23 | E128: 31 | F128: 585907.2271 | G128: 88859.7366 | H128: 497047.4905 | I128: 88859.7366 | J128: 497047.4905 | K128: 6494277.183 | M128: 633907
A129: 73 | B129: 73 | C129: 2025-11-23 | D129: 2025-12-23 | E129: 30 | F129: 585907.2271 | G129: 79879.60936 | H129: 506027.6178 | I129: 79879.60936 | J129: 506027.6178 | K129: 5988249.566 | M129: 633907
A130: 74 | B130: 74 | C130: 2025-12-23 | D130: 2026-01-23 | E130: 31 | F130: 585907.2271 | G130: 76110.65198 | H130: 509796.5751 | I130: 76110.65198 | J130: 509796.5751 | K130: 5478452.99 | M130: 633907
A131: 75 | B131: 75 | C131: 2026-01-23 | D131: 2026-02-23 | E131: 31 | F131: 585907.2271 | G131: 69631.13751 | H131: 516276.0896 | I131: 69631.13751 | J131: 516276.0896 | K131: 4962176.901 | M131: 633907
A132: 76 | B132: 76 | C132: 2026-02-23 | D132: 2026-03-23 | E132: 28 | F132: 585907.2271 | G132: 56965.79082 | H132: 528941.4363 | I132: 56965.79082 | J132: 528941.4363 | K132: 4433235.465 | M132: 633907
A133: 77 | B133: 77 | C133: 2026-03-23 | D133: 2026-04-23 | E133: 31 | F133: 585907.2271 | G133: 56346.42275 | H133: 529560.8044 | I133: 56346.42275 | J133: 529560.8044 | K133: 3903674.66 | M133: 633907
A134: 78 | B134: 78 | C134: 2026-04-23 | D134: 2026-05-23 | E134: 30 | F134: 585907.2271 | G134: 48015.19832 | H134: 537892.0288 | I134: 48015.19832 | J134: 537892.0288 | K134: 3365782.631 | M134: 633907
A135: 79 | B135: 79 | C135: 2026-05-23 | D135: 2026-06-23 | E135: 31 | F135: 585907.2271 | G135: 42779.09724 | H135: 543128.1299 | I135: 42779.09724 | J135: 543128.1299 | K135: 2822654.501 | M135: 633907
A136: 80 | B136: 80 | C136: 2026-06-23 | D136: 2026-07-23 | E136: 30 | F136: 585907.2271 | G136: 34718.65037 | H136: 551188.5768 | I136: 34718.65037 | J136: 551188.5768 | K136: 2271465.925 | M136: 633907
A137: 81 | B137: 81 | C137: 2026-07-23 | D137: 2026-08-23 | E137: 31 | F137: 585907.2271 | G137: 28870.3319 | H137: 557036.8952 | I137: 28870.3319 | J137: 557036.8952 | K137: 1714429.029 | M137: 633907
A138: 82 | B138: 82 | C138: 2026-08-23 | D138: 2026-09-23 | E138: 31 | F138: 585907.2271 | G138: 21790.39296 | H138: 564116.8342 | I138: 21790.39296 | J138: 564116.8342 | K138: 1150312.195 | M138: 633907
A139: 83 | B139: 83 | C139: 2026-09-23 | D139: 2026-10-23 | E139: 30 | F139: 585907.2271 | G139: 14148.84 | H139: 571758.3871 | I139: 14148.84 | J139: 571758.3871 | K139: 578553.8082 | M139: 633907
A140: 84 | B140: 84 | C140: 2026-10-23 | D140: 2026-11-23 | E140: 31 | F140: 585907.2271 | G140: 7353.418902 | H140: 578553.8082 | I140: 7353.418902 | J140: 578553.8082 | K140: 2.991873771e-08 | M140: 0
A141: 85 | B141: 85 | K141: -1 | M141: 0
A142: 86 | B142: 86 | K142: -1 | M142: 0
A143: 87 | B143: 87 | K143: -1 | M143: 0
A144: 88 | B144: 88 | K144: -1 | M144: 0
A145: 89 | B145: 89 | K145: -1 | M145: 0
A146: 90 | B146: 90 | K146: -1 | M146: 0
A147: 91 | B147: 91 | K147: -1 | M147: 0
A148: 92 | B148: 92 | K148: -1 | M148: 0
A149: 93 | B149: 93 | K149: -1 | M149: 0
A150: 94 | B150: 94 | K150: -1 | M150: 0
A151: 95 | B151: 95 | K151: -1 | M151: 0
A152: 96 | B152: 96 | K152: -1 | M152: 0
A153: 97 | B153: 97 | E153: =IF(B153>Plazo,"",_xlfn.DAYS(D153,C153)) ->  | F153: =IF(B153>Plazo,"",$I$16) ->  | K153: -1 | M153: 0
A154: 98 | B154: 98 | C154: =IF(B154>Plazo,"",D153) ->  | D154: =IF(B154>Plazo,"",EDATE(D153,1)) ->  | G154: =IF(B154>Plazo,"",(K153*$I$12)/30*E154) ->  | H154: =IF(B154>Plazo,"",F154-I154) ->  | I154: =IF(B154>Plazo,"",IF(H153<0,G154-H153,G154)) ->  | J154: =IF(B154>Plazo,"",IF(H154<0,0,(F154-I154))) ->  | K154: =IF(B154>Plazo,-1,K153-J154) -> -1 | M154: 0
A155: 99 | B155: 99 | K155: -1 | M155: 0
A156: 100 | B156: 100 | K156: -1 | M156: 0
A157: 101 | B157: 101 | K157: -1 | M157: 0
A158: 102 | B158: 102 | K158: -1 | M158: 0
A159: 103 | B159: 103 | K159: -1 | M159: 0
A160: 104 | B160: 104 | K160: -1 | M160: 0
A161: 105 | B161: 105 | K161: -1 | M161: 0
A162: 106 | B162: 106 | K162: -1 | M162: 0
A163: 107 | B163: 107 | K163: -1 | M163: 0
A164: 108 | B164: 108 | K164: -1 | M164: 0
A165: 109 | B165: 109 | K165: -1 | M165: 0
A166: 110 | B166: 110 | K166: -1 | M166: 0
A167: 111 | B167: 111 | K167: -1 | M167: 0
A168: 112 | B168: 112 | K168: -1 | M168: 0
A169: 113 | B169: 113 | K169: -1 | M169: 0
A170: 114 | B170: 114 | K170: -1 | M170: 0
A171: 115 | B171: 115 | K171: -1 | M171: 0
A172: 116 | B172: 116 | K172: -1 | M172: 0
A173: 117 | B173: 117 | K173: -1 | M173: 0
A174: 118 | B174: 118 | K174: -1 | M174: 0
A175: 119 | B175: 119 | K175: -1 | M175: 0
A176: 120 | B176: 120 | K176: -1 | M176: 0
K177: -1 | M177: 0
K178: -1 | M178: 0
K179: -1 | M179: 0
K180: -1 | M180: 0
K181: -1 | M181: 0
K182: -1 | M182: 0
K183: -1 | M183: 0
K184: -1 | M184: 0
K185: -1 | M185: =IF(K185>1,CuotaSeg,0) -> 0
K186: =IF(B186>Plazo,-1,K185-J186) -> -1 | M186: 0
K187: -1 | M187: 0
K188: -1 | M188: 0
K189: -1 | M189: 0
K190: -1 | M190: 0
K191: -1 | M191: 0
K192: -1 | M192: 0
K193: -1 | M193: 0
K194: -1 | M194: 0
K195: -1 | M195: 0
K196: -1 | M196: 0
K197: -1 | M197: 0
K198: -1 | M198: 0
K199: -1 | M199: 0
K200: -1 | M200: 0
K201: -1 | M201: 0
K202: -1 | M202: 0
K203: -1 | M203: 0
K204: -1 | M204: 0
K205: -1 | M205: 0
K206: -1 | M206: 0
K207: -1 | M207: 0
K208: -1 | M208: 0
K209: -1 | M209: 0
K210: -1 | M210: 0
K211: -1 | M211: 0
K212: -1 | M212: 0
K213: -1 | M213: 0
K214: -1 | M214: 0
K215: -1 | M215: 0
K216: -1 | M216: 0
K217: -1 | M217: 0
K218: =IF(B218>Plazo,-1,K217-J218) -> -1 | M218: 0
K219: -1 | M219: 0
K220: -1 | M220: 0
K221: -1 | M221: 0
K222: -1 | M222: 0
K223: -1 | M223: 0
K224: -1 | M224: 0
K225: -1 | M225: 0
K226: -1 | M226: 0
K227: -1 | M227: 0
K228: -1 | M228: 0
K229: -1 | M229: 0
K230: -1 | M230: 0
K231: -1 | M231: 0
K232: -1 | M232: 0
K233: -1 | M233: 0
K234: -1 | M234: 0
K235: -1 | M235: 0
... 87 more rows

Sheet Factor x millon (hidden)
B4: Desplazamiento | D4: 30 Días (30 Días hasta 59 Diás)
B6: Tasa (%) | D6: Plazo (Meses)
B7: Tasa (NMV) | C7: Tasa E.A. | D7: 12 | E7: 24 | F7: 36 | G7: 48 | H7: 60 | I7: 72 | J7: 84 | K7: 96 | L7: 108
B8: 0.01 | C8: 0.1268250301 | D8: 90899 | E8: 48724 | F8: 34732 | G8: 27786 | H8: 23657 | I8: 20937 | J8: 19021 | K8: 17608 | L8: 16529
B9: 0.0105 | C9: 0.1335372966 | D9: 91225 | E9: 49030 | F9: 35038 | G9: 28097 | H9: 23975 | I9: 21263 | J9: 19355 | K9: 17950 | L9: 16880
B10: 0.011 | C10: 0.1402861965 | D10: 91552 | E10: 49337 | F10: 35346 | G10: 28410 | H10: 24296 | I10: 21592 | J10: 19693 | K10: 18296 | L10: 17235
B11: 0.0115 | C11: 0.1470719115 | D11: 91879 | E11: 49645 | F11: 35655 | G11: 28725 | H11: 24619 | I11: 21924 | J11: 20034 | K11: 18647 | L11: 17594
B12: 0.012 | C12: 0.1538946242 | D12: 92207 | E12: 49955 | F12: 35966 | G12: 29043 | H12: 24945 | I12: 22259 | J12: 20378 | K12: 19000 | L12: 17957
B13: 0.0125 | C13: 0.1607545177 | D13: 92535 | E13: 50265 | F13: 36279 | G13: 29363 | H13: 25274 | I13: 22597 | J13: 20726 | K13: 19358 | L13: 18324
B14: 0.013 | C14: 0.1676517763 | D14: 92865 | E14: 50577 | F14: 36594 | G14: 29685 | H14: 25605 | I14: 22938 | J14: 21077 | K14: 19719 | L14: 18696
B15: 0.0135 | C15: 0.1745865848 | D15: 93195 | E15: 50890 | F15: 36910 | G15: 30009 | H15: 25938 | I15: 23282 | J15: 21432 | K15: 20084 | L15: 19071
B16: 0.014 | C16: 0.1815591289 | D16: 93526 | E16: 51205 | F16: 37228 | G16: 30335 | H16: 26275 | I16: 23629 | J16: 21790 | K16: 20453 | L16: 19450
B17: 0.0145 | C17: 0.1885695954 | D17: 93857 | E17: 51520 | F17: 37547 | G17: 30664 | H17: 26613 | I17: 23979 | J17: 22151 | K17: 20825 | L17: 19833
B18: 0.015 | C18: 0.1956181715 | D18: 94190 | E18: 51837 | F18: 37869 | G18: 30995 | H18: 26955 | I18: 24332 | J18: 22515 | K18: 21201 | L18: 20220
B19: 0.0155 | C19: 0.2027050455 | D19: 94523 | E19: 52155 | F19: 38192 | G19: 31327 | H19: 27299 | I19: 24687 | J19: 22883 | K19: 21580 | L19: 20610
B20: 0.016 | C20: 0.2098304065 | D20: 94856 | E20: 52475 | F20: 38517 | G20: 31662 | H20: 27645 | I20: 25046 | J20: 23253 | K20: 21963 | L20: 21004
B21: 0.0165 | C21: 0.2169944444 | D21: 95191 | E21: 52795 | F21: 38843 | G21: 31999 | H21: 27994 | I21: 25408 | J21: 23628 | K21: 22349 | L21: 21402
B22: 0.0169 | C22: 0.2227536503 | D22: 95459 | E22: 53053 | F22: 39106 | G22: 32270 | H22: 28275 | I22: 25699 | J22: 23929 | K22: 22660 | L22: 21722
B23: 0.017 | C23: 0.2241973501 | D23: 95526 | E23: 53117 | F23: 39172 | G23: 32338 | H23: 28346 | I23: 25772 | J23: 24005 | K23: 22738 | L23: 21803
B24: 0.0175 | C24: 0.2314393149 | D24: 95862 | E24: 53440 | F24: 39501 | G24: 32679 | H24: 28700 | I24: 26139 | J24: 24385 | K24: 23131 | L24: 22207
B25: 0.018 | C25: 0.2387205316 | D25: 96198 | E25: 53764 | F25: 39833 | G25: 33022 | H25: 29057 | I25: 26509 | J25: 24768 | K25: 23527 | L25: 22615
B26: 0.0185 | C26: 0.2460411933 | D26: 96536 | E26: 54090 | F26: 40166 | G26: 33367 | H26: 29416 | I26: 26882 | J26: 25154 | K26: 23926 | L26: 23026
B27: 0.019 | C27: 0.2534014942 | D27: 96874 | E27: 54416 | F27: 40501 | G27: 33715 | H27: 29777 | I27: 27257 | J27: 25544 | K27: 24328 | L27: 23441
B28: 0.0195 | C28: 0.2608016293 | D28: 97212 | E28: 54744 | F28: 40838 | G28: 34064 | H28: 30141 | I28: 27636 | J28: 25936 | K28: 24734 | L28: 23858
B29: 0.02 | C29: 0.2682417946 | D29: 97552 | E29: 55073 | F29: 41176 | G29: 34416 | H29: 30507 | I29: 28017 | J29: 26331 | K29: 25142 | L29: 24279
B31: Desplazamiento | D31: 60 Días (60 Días hasta 89 Diás)
B33: Tasa (%) | D33: Plazo (Meses)
B34: Tasa (NMV) | C34: Tasa E.A. | D34: 12 | E34: 24 | F34: 36 | G34: 48 | H34: 60 | I34: 72 | J34: 84 | K34: 96 | L34: 108
B35: 0.01 | C35: 0.1268250301 | D35: 91779 | E35: 49190 | F35: 35061 | G35: 28046 | H35: 23876 | I35: 21129 | J35: 19194 | K35: 17766 | L35: 16676
B36: 0.0105 | C36: 0.1335372966 | D36: 92151 | E36: 49522 | F36: 35386 | G36: 28372 | H36: 24208 | I36: 21467 | J36: 19539 | K36: 18119 | L36: 17037
B37: 0.011 | C37: 0.1402861965 | D37: 92524 | E37: 49855 | F37: 35713 | G37: 28702 | H37: 24542 | I37: 21808 | J37: 19889 | K37: 18476 | L37: 17402
B38: 0.0115 | C38: 0.1470719115 | D38: 92899 | E38: 50190 | F38: 36043 | G38: 29033 | H38: 24880 | I38: 22153 | J38: 20242 | K38: 18838 | L38: 17772
B39: 0.012 | C39: 0.1538946242 | D39: 93274 | E39: 50526 | F39: 36374 | G39: 29367 | H39: 25220 | I39: 22501 | J39: 20598 | K39: 19203 | L39: 18146
B40: 0.0125 | C40: 0.1607545177 | D40: 93650 | E40: 50864 | F40: 36706 | G40: 29704 | H40: 25564 | I40: 22853 | J40: 20958 | K40: 19573 | L40: 18525
B41: 0.013 | C41: 0.1676517763 | D41: 94027 | E41: 51203 | F41: 37041 | G41: 30042 | H41: 25910 | I41: 23208 | J41: 21322 | K41: 19946 | L41: 18908
B42: 0.0135 | C42: 0.1745865848 | D42: 94405 | E42: 51544 | F42: 37378 | G42: 30384 | H42: 26258 | I42: 23566 | J42: 21690 | K42: 20323 | L42: 19294
B43: 0.014 | C43: 0.1815591289 | D43: 94784 | E43: 51886 | F43: 37716 | G43: 30728 | H43: 26610 | I43: 23927 | J43: 22061 | K43: 20704 | L43: 19685
B44: 0.0145 | C44: 0.1885695954 | D44: 95164 | E44: 52230 | F44: 38057 | G44: 31074 | H44: 26965 | I44: 24291 | J44: 22435 | K44: 21089 | L44: 20080
B45: 0.015 | C45: 0.1956181715 | D45: 95545 | E45: 52575 | F45: 38399 | G45: 31423 | H45: 27322 | I45: 24658 | J45: 22813 | K45: 21477 | L45: 20479
B46: 0.0155 | C46: 0.2027050455 | D46: 95926 | E46: 52922 | F46: 38744 | G46: 31774 | H46: 27682 | I46: 25029 | J46: 23194 | K46: 21869 | L46: 20881
B47: 0.016 | C47: 0.2098304065 | D47: 96309 | E47: 53270 | F47: 39090 | G47: 32127 | H47: 28045 | I47: 25403 | J47: 23579 | K47: 22265 | L47: 21288
B48: 0.0165 | C48: 0.2169944444 | D48: 96693 | E48: 53620 | F48: 39439 | G48: 32482 | H48: 28411 | I48: 25780 | J48: 23967 | K48: 22664 | L48: 21698
B49: 0.0169 | C49: 0.2227536503 | D49: 97001 | E49: 53901 | F49: 39719 | G49: 32768 | H49: 28705 | I49: 26083 | J49: 24280 | K49: 22986 | L49: 22028
B50: 0.017 | C50: 0.2241973501 | D50: 97078 | E50: 53971 | F50: 39789 | G50: 32840 | H50: 28779 | I50: 26159 | J50: 24359 | K50: 23067 | L50: 22111
B51: 0.0175 | C51: 0.2314393149 | D51: 97463 | E51: 54324 | F51: 40141 | G51: 33200 | H51: 29150 | I51: 26542 | J51: 24753 | K51: 23473 | L51: 22528
B52: 0.018 | C52: 0.2387205316 | D52: 97850 | E52: 54678 | F52: 40495 | G52: 33562 | H52: 29524 | I52: 26927 | J52: 25151 | K52: 23882 | L52: 22948
B53: 0.0185 | C53: 0.2460411933 | D53: 98238 | E53: 55033 | F53: 40852 | G53: 33927 | H53: 29900 | I53: 27316 | J53: 25552 | K53: 24295 | L53: 23372
B54: 0.019 | C54: 0.2534014942 | D54: 98626 | E54: 55389 | F54: 41210 | G54: 34294 | H54: 30279 | I54: 27708 | J54: 25956 | K54: 24711 | L54: 23799
B55: 0.0195 | C55: 0.2608016293 | D55: 99016 | E55: 55746 | F55: 41570 | G55: 34664 | H55: 30661 | I55: 28102 | J55: 26363 | K55: 25130 | L55: 24229
B56: 0.02 | C56: 0.2682417946 | D56: 99406 | E56: 56105 | F56: 41932 | G56: 35036 | H56: 31045 | I56: 28499 | J56: 26773 | K56: 25552 | L56: 24661
B59: Desplazamiento | D59: 90 Días (90 Días hasta 119 Diás)
B61: Tasa (%) | D61: Plazo (Meses)
B62: Tasa (NMV) | C62: Tasa E.A. | D62: 12 | E62: 24 | F62: 36 | G62: 48 | H62: 60 | I62: 72 | J62: 84 | K62: 96 | L62: 108
B63: 0.01 | C63: 0.1268250301 | D63: 92659 | E63: 49656 | F63: 35388 | G63: 28304 | H63: 24093 | I63: 21319 | J63: 19364 | K63: 17922 | L63: 16821
B64: 0.0105 | C64: 0.1335372966 | D64: 93077 | E64: 50014 | F64: 35732 | G64: 28646 | H64: 24438 | I64: 21669 | J64: 19721 | K64: 18286 | L64: 17192
B65: 0.011 | C65: 0.1402861965 | D65: 93497 | E65: 50373 | F65: 36078 | G65: 28991 | H65: 24787 | I65: 22023 | J65: 20081 | K65: 18654 | L65: 17567
B66: 0.0115 | C66: 0.1470719115 | D66: 93918 | E66: 50735 | F66: 36426 | G66: 29339 | H66: 25138 | I66: 22380 | J66: 20446 | K66: 19025 | L66: 17947
B67: 0.012 | C67: 0.1538946242 | D67: 94341 | E67: 51098 | F67: 36777 | G67: 29689 | H67: 25493 | I67: 22741 | J67: 20814 | K67: 19402 | L67: 18331
B68: 0.0125 | C68: 0.1607545177 | D68: 94764 | E68: 51462 | F68: 37129 | G68: 30042 | H68: 25850 | I68: 23105 | J68: 21186 | K68: 19782 | L68: 18720
B69: 0.013 | C69: 0.1676517763 | D69: 95189 | E69: 51828 | F69: 37484 | G69: 30397 | H69: 26211 | I69: 23473 | J69: 21562 | K69: 20167 | L69: 19113
B70: 0.0135 | C70: 0.1745865848 | D70: 95615 | E70: 52196 | F70: 37841 | G70: 30755 | H70: 26574 | I70: 23844 | J70: 21942 | K70: 20555 | L70: 19511
B71: 0.014 | C71: 0.1815591289 | D71: 96042 | E71: 52565 | F71: 38201 | G71: 31116 | H71: 26941 | I71: 24219 | J71: 22325 | K71: 20948 | L71: 19912
B72: 0.0145 | C72: 0.1885695954 | D72: 96470 | E72: 52935 | F72: 38562 | G72: 31479 | H72: 27310 | I72: 24597 | J72: 22712 | K72: 21344 | L72: 20318
B73: 0.015 | C73: 0.1956181715 | D73: 96899 | E73: 53308 | F73: 38926 | G73: 31845 | H73: 27683 | I73: 24978 | J73: 23103 | K73: 21744 | L73: 20728
B74: 0.0155 | C74: 0.2027050455 | D74: 97330 | E74: 53681 | F74: 39292 | G74: 32214 | H74: 28059 | I74: 25362 | J74: 23497 | K74: 22148 | L74: 21141
B75: 0.016 | C75: 0.2098304065 | D75: 97762 | E75: 54057 | F75: 39659 | G75: 32584 | H75: 28437 | I75: 25750 | J75: 23895 | K75: 22556 | L75: 21558
B76: 0.0165 | C76: 0.2169944444 | D76: 98195 | E76: 54434 | F76: 40028 | G76: 32958 | H76: 28818 | I76: 26141 | J76: 24295 | K76: 22967 | L76: 21979
B77: 0.0169 | C77: 0.2227536503 | D77: 98542 | E77: 54738 | F77: 40325 | G77: 33258 | H77: 29125 | I77: 26456 | J77: 24619 | K77: 23298 | L77: 22318
B78: 0.017 | C78: 0.2241973501 | D78: 98629 | E78: 54813 | F78: 40400 | G78: 33333 | H78: 29202 | I78: 26535 | J78: 24700 | K78: 23381 | L78: 22403
B79: 0.0175 | C79: 0.2314393149 | D79: 99065 | E79: 55194 | F79: 40774 | G79: 33712 | H79: 29589 | I79: 26932 | J79: 25107 | K79: 23799 | L79: 22831
B80: 0.018 | C80: 0.2387205316 | D80: 99501 | E80: 55577 | F80: 41149 | G80: 34093 | H80: 29979 | I80: 27332 | J80: 25518 | K80: 24220 | L80: 23262
B81: 0.0185 | C81: 0.2460411933 | D81: 99939 | E81: 55961 | F81: 41527 | G81: 34476 | H81: 30372 | I81: 27735 | J81: 25932 | K81: 24645 | L81: 23696
B82: 0.019 | C82: 0.2534014942 | D82: 100378 | E82: 56346 | F82: 41908 | G82: 34862 | H82: 30767 | I82: 28141 | J82: 26349 | K82: 25072 | L82: 24133
B83: 0.0195 | C83: 0.2608016293 | D83: 100819 | E83: 56734 | F83: 42290 | G83: 35251 | H83: 31165 | I83: 28550 | J83: 26769 | K83: 25503 | L83: 24574
B84: 0.02 | C84: 0.2682417946 | D84: 101260 | E84: 57123 | F84: 42674 | G84: 35641 | H84: 31565 | I84: 28962 | J84: 27192 | K84: 25936 | L84: 25017

Sheet Factor x millon ONEST (hidden)
B4: Desplazamiento | D4: 30 Días (30 Días hasta 59 Diás)
B6: Tasa (%) | D6: Plazo (Meses)
B7: Tasa (NMV) | C7: Tasa E.A. | D7: 12 | E7: 24 | F7: 36 | G7: 48 | H7: 60 | I7: 72 | J7: 84 | K7: 96 | L7: 108
B8: 0.0129 | C8: 0.1662693265 | D8: 92799 | E8: 50515 | F8: 36531 | G8: 29620 | H8: 25538 | I8: 22869 | J8: 21007 | K8: 19647 | L8: 18621
B9: 0.0159 | C9: 0.2084022462 | D9: 94790 | E9: 52411 | F9: 38452 | G9: 31595 | H9: 27576 | I9: 24974 | J9: 23179 | K9: 21886 | L9: 20925
B10: 0.0169 | C10: 0.2227536503 | D10: 95459 | E10: 53053 | F10: 39106 | G10: 32270 | H10: 28275 | I10: 25699 | J10: 23929 | K10: 22660 | L10: 21722
B12: Desplazamiento | D12: 60 Días (60 Días hasta 89 Diás)
B14: Tasa (%) | D14: Plazo (Meses)
B15: Tasa (NMV) | C15: Tasa E.A. | D15: 12 | E15: 24 | F15: 36 | G15: 48 | H15: 60 | I15: 72 | J15: 84 | K15: 96 | L15: 108
B16: 0.0129 | C16: 0.1662693265 | D16: 93951 | E16: 51135 | F16: 36974 | G16: 29975 | H16: 25840 | I16: 23136 | J16: 21249 | K16: 19871 | L16: 18831
B17: 0.0159 | C17: 0.2084022462 | D17: 96233 | E17: 53200 | F17: 39021 | G17: 32056 | H17: 27972 | I17: 25328 | J17: 23502 | K17: 22186 | L17: 21206
B18: 0.0169 | C18: 0.2227536503 | D18: 97001 | E18: 53901 | F18: 39719 | G18: 32768 | H18: 28705 | I18: 26083 | J18: 24280 | K18: 22986 | L18: 22028
B21: Desplazamiento | D21: 90 Días (90 Días hasta 119 Diás)
B23: Tasa (%) | D23: Plazo (Meses)
B24: Tasa (NMV) | C24: Tasa E.A. | D24: 12 | E24: 24 | F24: 36 | G24: 48 | H24: 60 | I24: 72 | J24: 84 | K24: 96 | L24: 108
B25: 0.0129 | C25: 0.1662693265 | D25: 95104 | E25: 51755 | F25: 37413 | G25: 30326 | H25: 26138 | I25: 23399 | J25: 21487 | K25: 20089 | L25: 19034
B26: 0.0159 | C26: 0.2084022462 | D26: 97676 | E26: 53982 | F26: 39585 | G26: 32510 | H26: 28361 | I26: 25672 | J26: 23815 | K26: 22474 | L26: 21474
B27: 0.0169 | C27: 0.2227536503 | D27: 98542 | E27: 54738 | F27: 40325 | G27: 33258 | H27: 29125 | I27: 26456 | J27: 24619 | K27: 23298 | L27: 22318
